[Event "*** Titled Tuesday Blitz"]
[Site "Chess.com"]
[Date "2021.03.30"]
[Round "4"]
[White "Romadk"]
[Black "aunqa"]
[Result "0-1"]
[WhiteElo "2308"]
[BlackElo "2184"]
[TimeControl "180+1"]
[EndTime "10:42:10 PDT"]
[Termination "aunqa won by checkmate"]

1. d4 {[%clk 0:03:00.9]} 1... f5 {[%clk 0:02:57.8]} 2. e4 {[%clk 0:03:00.5]}
2... fxe4 {[%clk 0:02:57.4]} 3. Nc3 {[%clk 0:03:01.4]} 3... Nf6 {[%clk
0:02:56.9]} 4. Bg5 {[%clk 0:03:01.7]} 4... Nc6 {[%clk 0:02:56.8]} 5. d5 {[%clk
0:03:01.6]} 5... Ne5 {[%clk 0:02:56.6]} 6. Qd4 {[%clk 0:03:02.2]} 6... Ng6
{[%clk 0:02:56.6]} 7. h4 {[%clk 0:03:02.7]} 7... e5 {[%clk 0:02:51.6]} 8. dxe6
{[%clk 0:02:55.5]} 8... d6 {[%clk 0:02:48.8]} 9. Nxe4 {[%clk 0:02:53.5]} 9...
Be7 {[%clk 0:02:47.3]} 10. h5 {[%clk 0:02:52.3]} 10... Nf8 {[%clk 0:02:45.7]}
11. h6 {[%clk 0:02:44.4]} 11... Nxe6 {[%clk 0:01:46.9]} 12. hxg7 {[%clk
0:02:42.5]} 12... Rg8 {[%clk 0:01:46.6]} 13. Nxf6+ {[%clk 0:02:40.7]} 13... Kf7
{[%clk 0:01:45.8]} 14. Bc4 {[%clk 0:01:20.6]} 14... Bxf6 {[%clk 0:01:35.5]} 15.
Bxf6 {[%clk 0:01:21.5]} 15... Qxf6 {[%clk 0:01:35]} 16. Qxf6+ {[%clk 0:01:22.4]}
16... Kxf6 {[%clk 0:01:35]} 17. Rxh7 {[%clk 0:01:21.7]} 17... Rxg7 {[%clk
0:01:34.3]} 18. Rxg7 {[%clk 0:01:20.4]} 18... Nxg7 {[%clk 0:01:33.7]} 19. O-O-O
{[%clk 0:01:19.9]} 19... Bf5 {[%clk 0:01:32.8]} 20. Nf3 {[%clk 0:01:19]} 20...
Re8 {[%clk 0:01:32]} 21. Nd4 {[%clk 0:01:17.6]} 21... Bg6 {[%clk 0:01:31]} 22.
Nb5 {[%clk 0:01:16]} 22... Re7 {[%clk 0:01:24.1]} 23. Nxa7 {[%clk 0:01:13.7]}
23... Be4 {[%clk 0:01:20.2]} 24. f3 {[%clk 0:01:11.3]} 24... Bf5 {[%clk
0:01:19.9]} 25. Nb5 {[%clk 0:01:08.8]} 25... Ne6 {[%clk 0:01:18.8]} 26. Bxe6
{[%clk 0:01:07.6]} 26... Bxe6 {[%clk 0:01:18.4]} 27. Re1 {[%clk 0:01:07.1]}
27... Rg7 {[%clk 0:01:16.2]} 28. g4 {[%clk 0:01:04.6]} 28... Bd5 {[%clk
0:01:15.3]} 29. Re3 {[%clk 0:01:02.6]} 29... Kg5 {[%clk 0:01:13.9]} 30. Rc3
{[%clk 0:00:57.3]} 30... c6 {[%clk 0:01:02.7]} 31. Nxd6 {[%clk 0:00:56.4]} 31...
Kf4 {[%clk 0:01:02.6]} 32. Nf5 {[%clk 0:00:52]} 32... Rh7 {[%clk 0:01:02.1]} 33.
b3 {[%clk 0:00:44.4]} 33... Bxf3 {[%clk 0:00:59.4]} 34. Nd6 {[%clk 0:00:40.9]}
34... Bxg4 {[%clk 0:00:56.9]} 35. Kb2 {[%clk 0:00:40.9]} 35... Bf3 {[%clk
0:00:53.7]} 36. a4 {[%clk 0:00:38.8]} 36... Bd5 {[%clk 0:00:51.4]} 37. Nc4
{[%clk 0:00:38.4]} 37... Ke4 {[%clk 0:00:46.7]} 38. Nd2+ {[%clk 0:00:37.8]}
38... Ke5 {[%clk 0:00:43.7]} 39. Nc4+ {[%clk 0:00:37.5]} 39... Ke6 {[%clk
0:00:41.6]} 40. Nb6 {[%clk 0:00:36.5]} 40... Be4 {[%clk 0:00:39.6]} 41. Nc4
{[%clk 0:00:36.1]} 41... Bd5 {[%clk 0:00:38.5]} 42. Ne3 {[%clk 0:00:36]} 42...
Be4 {[%clk 0:00:37.9]} 43. Nd1 {[%clk 0:00:35.8]} 43... Kd7 {[%clk 0:00:34.9]}
44. Nf2 {[%clk 0:00:35.1]} 44... Bd5 {[%clk 0:00:34.3]} 45. Nd3 {[%clk
0:00:35.5]} 45... Kc7 {[%clk 0:00:32.9]} 46. a5 {[%clk 0:00:35.6]} 46... Rh2
{[%clk 0:00:31]} 47. b4 {[%clk 0:00:35.3]} 47... Kb8 {[%clk 0:00:29.1]} 48. Nc5
{[%clk 0:00:35.3]} 48... Rh7 {[%clk 0:00:23.8]} 49. Re3 {[%clk 0:00:34.4]} 49...
Bc4 {[%clk 0:00:21.1]} 50. Re8+ {[%clk 0:00:33.3]} 50... Ka7 {[%clk 0:00:21]}
51. Re3 {[%clk 0:00:33.5]} 51... Rg7 {[%clk 0:00:16.6]} 52. Kc3 {[%clk
0:00:32.7]} 52... Bb5 {[%clk 0:00:15.9]} 53. Ne6 {[%clk 0:00:32]} 53... Rh7
{[%clk 0:00:15]} 54. Nd4 {[%clk 0:00:31.9]} 54... Ba6 {[%clk 0:00:14.4]} 55. Nb3
{[%clk 0:00:31.3]} 55... Bb5 {[%clk 0:00:14.2]} 56. Nd4 {[%clk 0:00:31.1]} 56...
Ba6 {[%clk 0:00:14.2]} 57. Kb3 {[%clk 0:00:31.2]} 57... Rh4 {[%clk 0:00:13.3]}
58. Ne2 {[%clk 0:00:29.6]} 58... Bc4+ {[%clk 0:00:12.9]} 59. Kb2 {[%clk
0:00:28.8]} 59... Ba6 {[%clk 0:00:12.7]} 60. c3 {[%clk 0:00:27.6]} 60... Rh2
{[%clk 0:00:12]} 61. Kb3 {[%clk 0:00:24.1]} 61... Rxe2 {[%clk 0:00:11.1]} 62.
Rf3 {[%clk 0:00:23.9]} 62... Rh2 {[%clk 0:00:11.1]} 63. Rg3 {[%clk 0:00:23.8]}
63... Be2 {[%clk 0:00:09.7]} 64. Re3 {[%clk 0:00:23]} 64... Bd1+ {[%clk
0:00:09.9]} 65. Ka3 {[%clk 0:00:23.2]} 65... Rc2 {[%clk 0:00:08.8]} 66. Rd3
{[%clk 0:00:20.5]} 66... Rc1 {[%clk 0:00:09.1]} 67. Rd2 {[%clk 0:00:18.8]} 67...
Bf3 {[%clk 0:00:06.9]} 68. Rd3 {[%clk 0:00:17.9]} 68... Bd5 {[%clk 0:00:06.8]}
69. Kb2 {[%clk 0:00:17.1]} 69... Rh1 {[%clk 0:00:06.3]} 70. Re3 {[%clk
0:00:16.7]} 70... Ka6 {[%clk 0:00:06.2]} 71. Rd3 {[%clk 0:00:15.2]} 71... Kb5
{[%clk 0:00:06.1]} 72. Rd4 {[%clk 0:00:15.7]} 72... Ka4 {[%clk 0:00:04.4]} 73.
Kc2 {[%clk 0:00:14.6]} 73... Rh2+ {[%clk 0:00:03.4]} 74. Kd3 {[%clk 0:00:14.5]}
74... Kb3 {[%clk 0:00:04]} 75. b5 {[%clk 0:00:12.8]} 75... Rh3+ {[%clk
0:00:04.3]} 76. Kd2 {[%clk 0:00:12.4]} 76... Rh2+ {[%clk 0:00:04.2]} 77. Kd3
{[%clk 0:00:12]} 77... Rh3+ {[%clk 0:00:04.1]} 78. Kd2 {[%clk 0:00:11.7]} 78...
Rxc3 {[%clk 0:00:05]} 79. a6 {[%clk 0:00:10]} 79... bxa6 {[%clk 0:00:03.8]} 80.
bxa6 {[%clk 0:00:10.9]} 80... Rc2+ {[%clk 0:00:03.5]} 81. Kd3 {[%clk 0:00:10.4]}
81... Ra2 {[%clk 0:00:04.4]} 82. a7 {[%clk 0:00:08.5]} 82... Rxa7 {[%clk
0:00:04.4]} 83. Kd2 {[%clk 0:00:08.2]} 83... Rd7 {[%clk 0:00:04.4]} 84. Rd3+
{[%clk 0:00:09.1]} 84... Kb4 {[%clk 0:00:03.9]} 85. Re3 {[%clk 0:00:09.6]} 85...
Kc5 {[%clk 0:00:04]} 86. Kc2 {[%clk 0:00:10.5]} 86... Kd6 {[%clk 0:00:04.7]} 87.
Rg3 {[%clk 0:00:10.6]} 87... c5 {[%clk 0:00:05.6]} 88. Rg6+ {[%clk 0:00:10.3]}
88... Be6 {[%clk 0:00:05.8]} 89. Rg5 {[%clk 0:00:11.2]} 89... c4 {[%clk
0:00:06.1]} 90. Kc3 {[%clk 0:00:10.8]} 90... Rc7 {[%clk 0:00:07]} 91. Rg1 {[%clk
0:00:08.7]} 91... Rb7 {[%clk 0:00:07.2]} 92. Rd1+ {[%clk 0:00:08.8]} 92... Kc5
{[%clk 0:00:07.5]} 93. Re1 {[%clk 0:00:07.9]} 93... Rb3+ {[%clk 0:00:08.1]} 94.
Kc2 {[%clk 0:00:08.4]} 94... Bd5 {[%clk 0:00:08.4]} 95. Kd2 {[%clk 0:00:08.3]}
95... Kd4 {[%clk 0:00:08.5]} 96. Kc2 {[%clk 0:00:08.2]} 96... Rd3 {[%clk
0:00:08.6]} 97. Rg1 {[%clk 0:00:07]} 97... Be4 {[%clk 0:00:09.1]} 98. Rg4 {[%clk
0:00:06.5]} 98... Rg3+ {[%clk 0:00:09.1]} 99. Rxe4+ {[%clk 0:00:04.9]} 99...
Kxe4 {[%clk 0:00:09.3]} 100. Kc1 {[%clk 0:00:05.8]} 100... Kd4 {[%clk
0:00:10.1]} 101. Kc2 {[%clk 0:00:06.4]} 101... Rg2+ {[%clk 0:00:10.5]} 102. Kc1
{[%clk 0:00:07.3]} 102... Kc3 {[%clk 0:00:11.4]} 103. Kb1 {[%clk 0:00:05.7]}
103... Rg1+ {[%clk 0:00:11.4]} 104. Ka2 {[%clk 0:00:06.6]} 104... Rh1 {[%clk
0:00:11.9]} 105. Ka3 {[%clk 0:00:04.6]} 105... Ra1# {[%clk 0:00:12.8]} 0-1

[Event "*** Titled Tuesday Blitz"]
[Site "Chess.com"]
[Date "2021.03.30"]
[Round "5"]
[White "GMRafpig"]
[Black "Arvids_Andrejevs"]
[Result "1-0"]
[WhiteElo "2600"]
[BlackElo "2438"]
[TimeControl "180+1"]
[EndTime "10:50:29 PDT"]
[Termination "GMRafpig won by resignation"]

1. c4 {[%clk 0:03:00.9]} 1... e6 {[%clk 0:03:00]} 2. g3 {[%clk 0:02:58.2]} 2...
Nf6 {[%clk 0:03:00.4]} 3. Bg2 {[%clk 0:02:57.7]} 3... d5 {[%clk 0:03:01.3]} 4.
Nf3 {[%clk 0:02:57.5]} 4... Be7 {[%clk 0:03:00.8]} 5. O-O {[%clk 0:02:56.8]}
5... O-O {[%clk 0:03:01.4]} 6. b3 {[%clk 0:02:56.2]} 6... c5 {[%clk 0:03:01.1]}
7. Bb2 {[%clk 0:02:53.5]} 7... Nc6 {[%clk 0:03:01.3]} 8. cxd5 {[%clk 0:02:53.4]}
8... Nxd5 {[%clk 0:03:00.2]} 9. Nc3 {[%clk 0:02:48.2]} 9... Nxc3 {[%clk
0:02:58.3]} 10. Bxc3 {[%clk 0:02:47.3]} 10... Bf6 {[%clk 0:02:57.2]} 11. Rc1
{[%clk 0:02:43.5]} 11... Bd7 {[%clk 0:02:48.6]} 12. Bxf6 {[%clk 0:02:41.3]}
12... Qxf6 {[%clk 0:02:49.5]} 13. Rxc5 {[%clk 0:02:41.5]} 13... b6 {[%clk
0:02:41.5]} 14. Rc1 {[%clk 0:02:39.1]} 14... Rac8 {[%clk 0:02:37.7]} 15. d4
{[%clk 0:02:35.8]} 15... Nb4 {[%clk 0:02:35.3]} 16. Qd2 {[%clk 0:02:34.6]} 16...
a5 {[%clk 0:02:31.9]} 17. Ne5 {[%clk 0:02:30.4]} 17... Bb5 {[%clk 0:02:29.1]}
18. a3 {[%clk 0:02:23.3]} 18... Rfd8 {[%clk 0:02:28.3]} 19. Rxc8 {[%clk
0:02:19.2]} 19... Rxc8 {[%clk 0:02:25.6]} 20. axb4 {[%clk 0:02:19.1]} 1-0

[Event "*** Titled Tuesday Blitz"]
[Site "Chess.com"]
[Date "2021.03.30"]
[Round "5"]
[White "SirStrateg"]
[Black "Bacyanide"]
[Result "0-1"]
[WhiteElo "2546"]
[BlackElo "2429"]
[TimeControl "180+1"]
[EndTime "10:50:36 PDT"]
[Termination "Bacyanide won by resignation"]

1. d4 {[%clk 0:03:00.9]} 1... Nf6 {[%clk 0:02:59]} 2. Bf4 {[%clk 0:03:01]} 2...
d5 {[%clk 0:02:57.2]} 3. e3 {[%clk 0:03:01.4]} 3... e6 {[%clk 0:02:57.7]} 4. Nd2
{[%clk 0:03:01.1]} 4... Bd6 {[%clk 0:02:57.2]} 5. Bg3 {[%clk 0:03:01.1]} 5...
O-O {[%clk 0:02:56.3]} 6. Ngf3 {[%clk 0:03:01.5]} 6... c5 {[%clk 0:02:56.5]} 7.
c3 {[%clk 0:03:01.5]} 7... Qc7 {[%clk 0:02:56.6]} 8. Bd3 {[%clk 0:03:00.7]} 8...
Nbd7 {[%clk 0:02:56.2]} 9. O-O {[%clk 0:03:00.6]} 9... e5 {[%clk 0:02:56.3]} 10.
dxe5 {[%clk 0:03:01]} 10... Nxe5 {[%clk 0:02:57.2]} 11. Nxe5 {[%clk 0:03:01.5]}
11... Bxe5 {[%clk 0:02:58.1]} 12. Nf3 {[%clk 0:03:01.3]} 12... Bxg3 {[%clk
0:02:57.8]} 13. hxg3 {[%clk 0:03:02.2]} 13... Be6 {[%clk 0:02:55.7]} 14. Qa4
{[%clk 0:03:01.1]} 14... h6 {[%clk 0:02:53.1]} 15. Rfd1 {[%clk 0:02:59.9]} 15...
a6 {[%clk 0:02:51.7]} 16. Qf4 {[%clk 0:02:50.6]} 16... Qe7 {[%clk 0:02:49.5]}
17. b4 {[%clk 0:02:41.1]} 17... g5 {[%clk 0:02:29.2]} 18. Qe5 {[%clk 0:02:40.7]}
18... Ng4 {[%clk 0:02:22.9]} 0-1

[Event "*** Titled Tuesday Blitz"]
[Site "Chess.com"]
[Date "2021.03.30"]
[Round "5"]
[White "Schwarzschidl"]
[Black "Supernotar"]
[Result "0-1"]
[WhiteElo "2485"]
[BlackElo "2707"]
[TimeControl "180+1"]
[EndTime "10:50:53 PDT"]
[Termination "Supernotar won by resignation"]

1. e4 {[%clk 0:03:00.9]} 1... c6 {[%clk 0:02:59.7]} 2. c4 {[%clk 0:03:00.2]}
2... d5 {[%clk 0:03:00.6]} 3. exd5 {[%clk 0:03:01.1]} 3... cxd5 {[%clk
0:03:01.2]} 4. d4 {[%clk 0:03:01.6]} 4... Nf6 {[%clk 0:03:00.9]} 5. Nc3 {[%clk
0:03:02.2]} 5... e6 {[%clk 0:03:01.4]} 6. Nf3 {[%clk 0:03:02.6]} 6... Be7 {[%clk
0:03:01.6]} 7. Be2 {[%clk 0:03:03.2]} 7... dxc4 {[%clk 0:03:01]} 8. O-O {[%clk
0:03:03.2]} 8... O-O {[%clk 0:03:00.8]} 9. Bxc4 {[%clk 0:03:03.8]} 9... Nc6
{[%clk 0:03:00.8]} 10. Bg5 {[%clk 0:03:02.5]} 10... Nd5 {[%clk 0:03:00.2]} 11.
Bxe7 {[%clk 0:03:01.2]} 11... Ncxe7 {[%clk 0:03:01.1]} 12. Rc1 {[%clk 0:03:01]}
12... b6 {[%clk 0:03:01.2]} 13. Ne5 {[%clk 0:03:00.9]} 13... Bb7 {[%clk
0:03:00.6]} 14. Qe2 {[%clk 0:03:00.7]} 14... Rc8 {[%clk 0:02:58.4]} 15. Nxd5
{[%clk 0:02:54.1]} 15... Nxd5 {[%clk 0:02:57.1]} 16. f4 {[%clk 0:02:53.2]} 16...
b5 {[%clk 0:02:40.8]} 17. Bxd5 {[%clk 0:02:41]} 17... Qxd5 {[%clk 0:02:39.3]}
18. Rcd1 {[%clk 0:02:33.8]} 18... Qxa2 {[%clk 0:02:33.8]} 19. Rf3 {[%clk
0:02:19.9]} 19... Bxf3 {[%clk 0:02:30.7]} 20. Qxf3 {[%clk 0:02:20.1]} 20... Qxb2
{[%clk 0:02:27.7]} 21. d5 {[%clk 0:02:19.5]} 21... exd5 {[%clk 0:02:22.8]} 22.
Qxd5 {[%clk 0:02:20.4]} 22... Rc1 {[%clk 0:02:22]} 23. h3 {[%clk 0:02:17.5]}
23... Qb1 {[%clk 0:02:17.9]} 24. Rxc1 {[%clk 0:02:10.3]} 24... Qxc1+ {[%clk
0:02:18.8]} 25. Kh2 {[%clk 0:02:11]} 25... Qxf4+ {[%clk 0:02:18.7]} 0-1

[Event "*** Titled Tuesday Blitz"]
[Site "Chess.com"]
[Date "2021.03.30"]
[Round "5"]
[White "ChessFunMaker"]
[Black "gui_borba"]
[Result "0-1"]
[WhiteElo "2238"]
[BlackElo "2436"]
[TimeControl "180+1"]
[EndTime "10:51:50 PDT"]
[Termination "gui_borba won by checkmate"]

1. c4 {[%clk 0:03:00.9]} 1... Nf6 {[%clk 0:02:59.7]} 2. g3 {[%clk 0:03:01.4]}
2... e5 {[%clk 0:02:59.8]} 3. Bg2 {[%clk 0:03:01.9]} 3... d5 {[%clk 0:03:00.3]}
4. cxd5 {[%clk 0:03:02.2]} 4... Nxd5 {[%clk 0:02:59.7]} 5. Nf3 {[%clk
0:03:02.6]} 5... Nc6 {[%clk 0:02:59.2]} 6. O-O {[%clk 0:03:03.2]} 6... Be7
{[%clk 0:02:58.1]} 7. d4 {[%clk 0:03:03.5]} 7... exd4 {[%clk 0:02:56]} 8. Nxd4
{[%clk 0:03:01]} 8... Nxd4 {[%clk 0:02:55.8]} 9. Qxd4 {[%clk 0:03:01.9]} 9...
Nf6 {[%clk 0:02:54.3]} 10. Qa4+ {[%clk 0:02:54.8]} 10... c6 {[%clk 0:02:53]} 11.
Rd1 {[%clk 0:02:47.5]} 11... Qb6 {[%clk 0:02:46.7]} 12. Nc3 {[%clk 0:02:28.9]}
12... O-O {[%clk 0:02:43.6]} 13. Qc2 {[%clk 0:02:14.6]} 13... Ng4 {[%clk
0:02:30]} 14. e4 {[%clk 0:02:10.3]} 14... Nxf2 {[%clk 0:02:09.5]} 15. Na4 {[%clk
0:01:34]} 15... Nh3+ {[%clk 0:02:08.2]} 16. Kh1 {[%clk 0:01:33.1]} 16... Qf2
{[%clk 0:02:08.2]} 17. Bd2 {[%clk 0:01:20.2]} 17... Qg1+ {[%clk 0:02:06.6]} 18.
Rxg1 {[%clk 0:01:09.9]} 18... Nf2# {[%clk 0:02:07.5]} 0-1

[Event "*** Titled Tuesday Blitz"]
[Site "Chess.com"]
[Date "2021.03.30"]
[Round "5"]
[White "xozr"]
[Black "Yaryi_sergey"]
[Result "0-1"]
[WhiteElo "2331"]
[BlackElo "2511"]
[TimeControl "180+1"]
[EndTime "10:52:15 PDT"]
[Termination "Yaryi_sergey won by resignation"]

1. e4 {[%clk 0:03:00.9]} 1... c6 {[%clk 0:02:53.4]} 2. Nc3 {[%clk 0:03:00.4]}
2... g6 {[%clk 0:02:50.9]} 3. Nf3 {[%clk 0:03:01.3]} 3... Bg7 {[%clk 0:02:51.1]}
4. d4 {[%clk 0:02:58.6]} 4... Na6 {[%clk 0:02:50.7]} 5. Bxa6 {[%clk 0:02:56.9]}
5... bxa6 {[%clk 0:02:50]} 6. O-O {[%clk 0:02:57.8]} 6... d6 {[%clk 0:02:50]} 7.
h3 {[%clk 0:02:57.5]} 7... Nf6 {[%clk 0:02:50.1]} 8. Be3 {[%clk 0:02:55.3]} 8...
Kf8 {[%clk 0:02:49.3]} 9. Qd2 {[%clk 0:02:55.1]} 9... h6 {[%clk 0:02:49.4]} 10.
Rad1 {[%clk 0:02:51.1]} 10... Kg8 {[%clk 0:02:49.5]} 11. e5 {[%clk 0:02:49.9]}
11... Nd5 {[%clk 0:02:49.2]} 12. Ne4 {[%clk 0:02:44.5]} 12... Kh7 {[%clk
0:02:48.6]} 13. c4 {[%clk 0:02:43.7]} 13... Nxe3 {[%clk 0:02:47.6]} 14. Qxe3
{[%clk 0:02:41.7]} 14... Bf5 {[%clk 0:02:42.1]} 15. Ng3 {[%clk 0:02:39.2]} 15...
Be6 {[%clk 0:02:41]} 16. d5 {[%clk 0:02:38.9]} 16... cxd5 {[%clk 0:02:40.5]} 17.
cxd5 {[%clk 0:02:39.8]} 17... Bd7 {[%clk 0:02:40.8]} 18. e6 {[%clk 0:02:39.5]}
18... Bb5 {[%clk 0:02:40.1]} 19. Rfe1 {[%clk 0:02:37.7]} 19... f5 {[%clk
0:02:36.5]} 20. Nd4 {[%clk 0:02:35.3]} 20... Rf8 {[%clk 0:02:33.1]} 21. Nxb5
{[%clk 0:02:21.3]} 21... f4 {[%clk 0:02:29.2]} 22. Qe4 {[%clk 0:01:53]} 22...
fxg3 {[%clk 0:02:28.6]} 23. fxg3 {[%clk 0:01:53.9]} 23... axb5 {[%clk
0:02:27.4]} 24. g4 {[%clk 0:01:53.3]} 24... Qb6+ {[%clk 0:02:24.5]} 25. Kh2
{[%clk 0:01:47.5]} 25... Qf2 {[%clk 0:02:23.9]} 26. Qe3 {[%clk 0:01:35.6]} 26...
Qxe3 {[%clk 0:02:20.5]} 27. Rxe3 {[%clk 0:01:36.5]} 27... Bxb2 {[%clk
0:02:20.7]} 28. Rb3 {[%clk 0:01:34.7]} 28... Be5+ {[%clk 0:02:20]} 29. Kg1
{[%clk 0:01:34.3]} 29... a6 {[%clk 0:02:19]} 30. a4 {[%clk 0:01:30]} 30... bxa4
{[%clk 0:02:17.6]} 31. Ra3 {[%clk 0:01:30.4]} 31... a5 {[%clk 0:02:16]} 32. Rxa4
{[%clk 0:01:30.9]} 32... Bc3 {[%clk 0:02:15.6]} 33. Rd3 {[%clk 0:01:30.5]} 33...
Bb4 {[%clk 0:02:15.6]} 34. h4 {[%clk 0:01:30.5]} 34... Rac8 {[%clk 0:02:15.2]}
35. h5 {[%clk 0:01:30.2]} 35... Rc4 {[%clk 0:02:15]} 36. hxg6+ {[%clk
0:01:29.2]} 36... Kxg6 {[%clk 0:02:14.9]} 37. Rg3 {[%clk 0:01:26.4]} 37... Bc5+
{[%clk 0:02:14.8]} 0-1

[Event "*** Titled Tuesday Blitz"]
[Site "Chess.com"]
[Date "2021.03.30"]
[Round "5"]
[White "Cambek64"]
[Black "Legendinunknown"]
[Result "1-0"]
[WhiteElo "2458"]
[BlackElo "2585"]
[TimeControl "180+1"]
[EndTime "10:52:26 PDT"]
[Termination "Cambek64 won by resignation"]

1. e4 {[%clk 0:02:22.2]} 1... c5 {[%clk 0:02:54.8]} 2. c3 {[%clk 0:02:18.9]}
2... Nf6 {[%clk 0:02:53.1]} 3. e5 {[%clk 0:02:14.3]} 3... Nd5 {[%clk 0:02:33]}
4. d4 {[%clk 0:02:11.7]} 4... cxd4 {[%clk 0:02:27.8]} 5. cxd4 {[%clk 0:02:11.8]}
5... Nc6 {[%clk 0:02:27.1]} 6. Nc3 {[%clk 0:02:06.4]} 6... Nxc3 {[%clk
0:02:23.8]} 7. bxc3 {[%clk 0:02:06.9]} 7... d6 {[%clk 0:02:24.7]} 8. f4 {[%clk
0:02:05.9]} 8... dxe5 {[%clk 0:02:21.6]} 9. fxe5 {[%clk 0:02:05]} 9... g6 {[%clk
0:02:21.8]} 10. Nf3 {[%clk 0:02:04.6]} 10... Bg7 {[%clk 0:02:16.8]} 11. Bc4
{[%clk 0:02:05.2]} 11... O-O {[%clk 0:02:13.9]} 12. O-O {[%clk 0:02:05.8]} 12...
e6 {[%clk 0:02:14]} 13. Ng5 {[%clk 0:02:00.2]} 13... Bd7 {[%clk 0:02:10.8]} 14.
Ne4 {[%clk 0:02:00.2]} 14... Na5 {[%clk 0:01:58.4]} 15. Bg5 {[%clk 0:01:54.5]}
15... Qc7 {[%clk 0:01:55]} 16. Bd3 {[%clk 0:01:54]} 16... Bc6 {[%clk 0:01:33.6]}
17. Nf6+ {[%clk 0:01:53.2]} 17... Kh8 {[%clk 0:01:22.8]} 18. Qg4 {[%clk
0:01:53.7]} 18... Bb5 {[%clk 0:00:56.9]} 19. Qh4 {[%clk 0:01:53.2]} 19... h5
{[%clk 0:00:55.6]} 20. Nxh5 {[%clk 0:01:51.9]} 1-0

[Event "*** Titled Tuesday Blitz"]
[Site "Chess.com"]
[Date "2021.03.30"]
[Round "5"]
[White "niki_2003"]
[Black "monikarozman"]
[Result "0-1"]
[WhiteElo "2036"]
[BlackElo "2248"]
[TimeControl "180+1"]
[EndTime "10:52:34 PDT"]
[Termination "monikarozman won by resignation"]

1. e4 {[%clk 0:02:58.8]} 1... c5 {[%clk 0:02:59.6]} 2. Nf3 {[%clk 0:02:58.1]}
2... Nc6 {[%clk 0:02:59.6]} 3. d4 {[%clk 0:02:57.3]} 3... cxd4 {[%clk
0:02:59.9]} 4. Nxd4 {[%clk 0:02:56.9]} 4... Nf6 {[%clk 0:03:00.2]} 5. Nc3 {[%clk
0:02:56.4]} 5... e5 {[%clk 0:03:00.1]} 6. Ndb5 {[%clk 0:02:52.3]} 6... d6 {[%clk
0:02:59]} 7. Bg5 {[%clk 0:02:50.6]} 7... a6 {[%clk 0:02:58.4]} 8. Na3 {[%clk
0:02:49.7]} 8... b5 {[%clk 0:02:58.3]} 9. Bxf6 {[%clk 0:02:48.9]} 9... gxf6
{[%clk 0:02:44]} 10. Nd5 {[%clk 0:02:47.7]} 10... f5 {[%clk 0:02:43.3]} 11. Bxb5
{[%clk 0:02:09]} 11... axb5 {[%clk 0:02:41.1]} 12. Nxb5 {[%clk 0:02:08.8]} 12...
Ra4 {[%clk 0:02:40.9]} 13. Nbc7+ {[%clk 0:01:55.2]} 13... Kd7 {[%clk 0:02:40.3]}
14. Nb6+ {[%clk 0:01:43.8]} 14... Kxc7 {[%clk 0:02:32.7]} 15. Nxa4 {[%clk
0:01:44.7]} 15... Ba6 {[%clk 0:02:25.3]} 16. exf5 {[%clk 0:01:39.1]} 16... Rg8
{[%clk 0:02:16.9]} 17. Qf3 {[%clk 0:01:37.2]} 17... Nd4 {[%clk 0:02:05.7]} 18.
Qc3+ {[%clk 0:01:35.2]} 18... Kb8 {[%clk 0:02:02.9]} 19. Qb4+ {[%clk 0:01:29.6]}
19... Ka7 {[%clk 0:01:52.2]} 20. O-O-O {[%clk 0:01:29.1]} 20... d5 {[%clk
0:01:46.2]} 21. Qc3 {[%clk 0:01:21.2]} 21... Ne2+ {[%clk 0:01:44.3]} 22. Kb1
{[%clk 0:01:21]} 22... Nxc3+ {[%clk 0:01:43.7]} 23. Nxc3 {[%clk 0:01:21.3]}
23... d4 {[%clk 0:01:42.5]} 24. Ne4 {[%clk 0:01:19.9]} 24... Qb6 {[%clk
0:01:39.2]} 0-1

[Event "*** Titled Tuesday Blitz"]
[Site "Chess.com"]
[Date "2021.03.30"]
[Round "5"]
[White "Kretov_Evgenij"]
[Black "grandcoach"]
[Result "1-0"]
[WhiteElo "2556"]
[BlackElo "2271"]
[TimeControl "180+1"]
[EndTime "10:52:35 PDT"]
[Termination "Kretov_Evgenij won by checkmate"]

1. d4 {[%clk 0:02:56.2]} 1... Nf6 {[%clk 0:02:59.3]} 2. c4 {[%clk 0:02:56.5]}
2... e6 {[%clk 0:02:59.6]} 3. Nc3 {[%clk 0:02:56.8]} 3... Bb4 {[%clk 0:02:58.9]}
4. Bg5 {[%clk 0:02:56.9]} 4... c5 {[%clk 0:02:57.8]} 5. d5 {[%clk 0:02:56.8]}
5... h6 {[%clk 0:02:50.6]} 6. Bh4 {[%clk 0:02:56.5]} 6... Qa5 {[%clk 0:02:43.3]}
7. Bxf6 {[%clk 0:02:55.9]} 7... gxf6 {[%clk 0:02:43.8]} 8. Qc2 {[%clk
0:02:56.2]} 8... Bxc3+ {[%clk 0:02:40.2]} 9. bxc3 {[%clk 0:02:55.9]} 9... d6
{[%clk 0:02:32.6]} 10. e3 {[%clk 0:02:54.1]} 10... Bd7 {[%clk 0:02:31.2]} 11.
Nf3 {[%clk 0:02:52.3]} 11... Ba4 {[%clk 0:02:30.1]} 12. Qb2 {[%clk 0:02:47.1]}
12... Nd7 {[%clk 0:02:26.2]} 13. Be2 {[%clk 0:02:43.2]} 13... Rg8 {[%clk
0:02:23.3]} 14. O-O {[%clk 0:02:39.1]} 14... O-O-O {[%clk 0:02:06.7]} 15. Nd2
{[%clk 0:02:31.9]} 15... f5 {[%clk 0:01:55.7]} 16. Rab1 {[%clk 0:02:21.7]} 16...
Qc7 {[%clk 0:01:45.7]} 17. Qa3 {[%clk 0:02:17.8]} 17... Nb6 {[%clk 0:01:45.6]}
18. Rxb6 {[%clk 0:02:16]} 18... Qxb6 {[%clk 0:01:38.9]} 19. Qxa4 {[%clk
0:02:16.2]} 19... Qb2 {[%clk 0:01:38.1]} 20. Rb1 {[%clk 0:01:58.9]} 20... Qxd2
{[%clk 0:01:34.4]} 21. Qxa7 {[%clk 0:01:58.8]} 21... Kd7 {[%clk 0:00:54.4]} 22.
Rxb7+ {[%clk 0:01:55.1]} 22... Ke8 {[%clk 0:00:54.1]} 23. Re7+ {[%clk
0:01:54.9]} 23... Kf8 {[%clk 0:00:53.5]} 24. Rxf7+ {[%clk 0:01:54.9]} 24... Ke8
{[%clk 0:00:53]} 25. Qe7# {[%clk 0:01:54.9]} 1-0

[Event "*** Titled Tuesday Blitz"]
[Site "Chess.com"]
[Date "2021.03.30"]
[Round "5"]
[White "ajdemipopushi"]
[Black "beto-betun"]
[Result "1-0"]
[WhiteElo "2345"]
[BlackElo "2214"]
[TimeControl "180+1"]
[EndTime "10:52:50 PDT"]
[Termination "ajdemipopushi won by resignation"]

1. Nf3 {[%clk 0:03:00.9]} 1... Nf6 {[%clk 0:02:58.4]} 2. g3 {[%clk 0:03:01.4]}
2... g6 {[%clk 0:02:58.4]} 3. c4 {[%clk 0:03:01.9]} 3... Bg7 {[%clk 0:02:58.2]}
4. d4 {[%clk 0:03:02.6]} 4... O-O {[%clk 0:02:57.6]} 5. Nc3 {[%clk 0:03:03.2]}
5... d6 {[%clk 0:02:58.3]} 6. Bg2 {[%clk 0:03:02.9]} 6... c6 {[%clk 0:02:58.6]}
7. O-O {[%clk 0:03:02.6]} 7... Bg4 {[%clk 0:02:57.3]} 8. b3 {[%clk 0:02:41.4]}
8... Qa5 {[%clk 0:02:55]} 9. Bb2 {[%clk 0:02:38]} 9... Qh5 {[%clk 0:02:55.6]}
10. Qd3 {[%clk 0:02:22]} 10... Na6 {[%clk 0:02:47.5]} 11. a3 {[%clk 0:02:20.2]}
11... Nc7 {[%clk 0:02:47.6]} 12. e4 {[%clk 0:02:19]} 12... Nd7 {[%clk 0:02:16]}
13. Nh4 {[%clk 0:01:03.8]} 13... c5 {[%clk 0:01:57.5]} 14. f3 {[%clk 0:01:03.6]}
14... cxd4 {[%clk 0:01:49.5]} 15. fxg4 {[%clk 0:01:03.1]} 15... Qxg4 {[%clk
0:01:50.1]} 16. Nd5 {[%clk 0:00:58.1]} 16... Nxd5 {[%clk 0:01:50.4]} 17. exd5
{[%clk 0:00:48.1]} 17... Ne5 {[%clk 0:01:46.8]} 18. Qd2 {[%clk 0:00:43.6]} 18...
Qf5 {[%clk 0:01:35.6]} 19. Nxf5 {[%clk 0:00:42.2]} 1-0